fUSD/lending_fUSD_20250623
["ID","MTS","AMOUNT","RATE_DAILY","PERIOD"]
[367202269,1750698702828,-1417.36,0.00024637,2]
[367202270,1750698702838,-534.32,0.00024637,2]
[367202271,1750698702848,-1871.08,0.00024637,2]
[367202272,1750698702860,-490.0,0.00024637,2]
[367202273,1750698702870,-490.0,0.00024637,2]
[367202274,1750698702880,-1102.28,0.00024637,2]
[367202275,1750698702890,-978.05,0.00024637,2]
[367202276,1750698702899,-1290.08,0.00024637,2]
[367202277,1750698702910,-490.0,0.00024637,2]
[367202278,1750698702920,-757.53,0.00024637,2]
[367202279,1750698702929,-490.0,0.00024637,2]
[367202280,1750698702938,-408.86148516,0.00024637,2]
[367202281,1750698702948,-6273.63,0.00024637,2]
[367202282,1750698702957,-490.0,0.00024637,2]
[367202283,1750698702966,-2190.49,0.00024637,2]
[367202284,1750698702975,-693.85,0.00024637,2]
[367202285,1750698702984,-969.95,0.00024637,2]
[367202286,1750698702993,-844.27,0.00024637,2]
[367202287,1750698703003,-490.0,0.00024637,2]
[367202288,1750698703012,-1768.01,0.00024637,2]
[367202289,1750698703021,-490.0,0.00024637,2]
[367202290,1750698703031,-1033.79,0.00024637,2]
[367202291,1750698703040,-490.0,0.00024637,2]
[367202292,1750698703050,-2829.12,0.00024637,2]
[367202293,1750698703059,-1421.12,0.00024637,2]
[367202294,1750698703068,-3039.87,0.00024637,2]
[367202295,1750698703077,-490.0,0.00024637,2]
[367202296,1750698703086,-158.19069472,0.00024638,2]
[367202297,1750698703097,-615.69,0.00024638,2]
[367202298,1750698703110,-490.0,0.00024638,2]
[367202299,1750698703119,-490.0,0.00024638,2]
[367202300,1750698703128,-799.05,0.00024638,2]
[367202301,1750698703137,-490.0,0.00024638,2]
[367202302,1750698703148,-649.48,0.00024638,2]
[367202303,1750698703158,-490.0,0.00024638,2]
[367202304,1750698703167,-747.22,0.00024638,2]
[367202305,1750698703178,-582.61,0.00024638,2]
[367202306,1750698703188,-582.61,0.00024638,2]
[367202307,1750698703197,-150.0,0.00024638,2]
[367202308,1750698703206,-571.21,0.00024638,2]
[367202309,1750698703215,-490.0,0.00024638,2]
[367202310,1750698703224,-1515.67,0.00024638,2]
[367202311,1750698703234,-1565.82,0.00024638,2]
[367202312,1750698703243,-2422.44,0.00024638,2]
[367202313,1750698703253,-1311.67,0.00024638,2]
[367202314,1750698703262,-1787.29,0.00024638,2]
[367202315,1750698703271,-490.0,0.00024638,2]
[367202316,1750698703280,-2072.67,0.00024638,2]
[367202317,1750698703289,-490.0,0.00024638,2]
[367202318,1750698703299,-821.3,0.00024638,2]
[367202319,1750698703308,-1673.72,0.00024638,2]
[367202320,1750698703318,-2237.1,0.00024638,2]
[367202321,1750698703329,-1610.12,0.00024638,2]
[367202322,1750698703338,-1083.0,0.00024638,2]
[367202323,1750698703348,-1106.33,0.00024638,2]
[367202324,1750698703360,-273.47060778,0.00024638,2]
[367202325,1750698703371,-490.0,0.00024638,2]
[367202326,1750698703381,-490.0,0.00024638,2]
[367202327,1750698703390,-2050.62,0.00024638,2]
[367202328,1750698703400,-1208.82,0.00024638,2]
[367202329,1750698703410,-498.0,0.00024638,2]
[367202330,1750698703420,-1726.23,0.00024638,2]
[367202331,1750698703429,-719.16,0.00024638,2]
[367202332,1750698703440,-490.0,0.00024638,2]
[367202333,1750698703449,-1608.26,0.00024638,2]
[367202334,1750698703460,-1628.29,0.00024638,2]
[367202335,1750698703470,-1088.21,0.00024638,2]
[367202336,1750698703479,-1428.05,0.00024638,2]
[367202337,1750698703489,-548.65,0.00024638,2]
[367202338,1750698703498,-1785.44,0.00024638,2]
[367202339,1750698703508,-1037.72,0.00024638,2]
[367202340,1750698703518,-490.0,0.00024638,2]
[367202341,1750698703527,-490.0,0.00024638,2]
[367202342,1750698703537,-938.56,0.00024638,2]
[367202343,1750698703546,-490.0,0.00024638,2]
[367202344,1750698703556,-490.0,0.00024638,2]
[367202345,1750698703566,-490.0,0.00024638,2]
[367202346,1750698703575,-490.0,0.00024638,2]
[367202347,1750698703585,-1599.2,0.00024638,2]
[367202348,1750698703595,-2233.74,0.00024638,2]
[367202349,1750698703604,-779.66,0.00024638,2]
[367202350,1750698703617,-2071.71,0.00024638,2]
[367202351,1750698703627,-2448.89,0.00024638,2]
[367202352,1750698703637,-1609.83,0.00024638,2]
[367202353,1750698703647,-771.85,0.00024638,2]
[367202354,1750698703657,-17894.27,0.00024638,2]
[367202355,1750698703667,-2144.67,0.00024638,2]
[367202356,1750698703677,-1031.7,0.00024638,2]
[367202357,1750698703687,-1643.47,0.00024638,2]
[367202358,1750698703696,-1164.0,0.00024638,2]
[367202359,1750698703706,-3265.53,0.00024638,2]
[367202360,1750698703716,-1649.42,0.00024638,2]
[367202361,1750698703726,-2939.17,0.00024638,2]
[367202362,1750698703736,-6326.13,0.00024638,2]
[367202363,1750698703747,-2564.45,0.00024638,2]
[367202364,1750698703757,-2032.0,0.00024638,2]
[367202365,1750698703767,-7426.18,0.00024638,2]
[367202366,1750698703776,-1353.02,0.00024638,2]
[367202367,1750698703787,-6426.78,0.00024638,2]
[367202368,1750698703796,-732.12,0.00024638,2]
[367202369,1750698703806,-1188.46,0.00024638,2]
[367202370,1750698703816,-3016.63,0.00024638,2]
[367202371,1750698703827,-671.94,0.00024638,2]
[367202372,1750698703837,-1261.71,0.00024638,2]
[367202373,1750698703846,-8384.06,0.00024638,2]
[367202374,1750698703856,-2734.07,0.00024638,2]
[367202375,1750698703868,-1338.84,0.00024638,2]
[367202376,1750698703878,-503.82,0.00024638,2]
[367202377,1750698703887,-785.94,0.00024638,2]
[367202378,1750698703897,-2908.2,0.00024638,2]
[367202379,1750698703907,-1254.38,0.00024638,2]
[367202380,1750698703918,-792.37,0.00024638,2]
[367202381,1750698703927,-3998.48,0.00024638,2]
[367202382,1750698703937,-1561.52,0.00024638,2]
[367202383,1750698703946,-6443.202937,0.00024638,2]
[367202384,1750698703956,-1450.98,0.00024638,2]
[367202385,1750698703966,-1020.65,0.00024638,2]
[367202386,1750698703976,-1226.48,0.00024638,2]
[367202387,1750698703985,-927.5,0.00024638,2]
[367202388,1750698703995,-490.0,0.00024638,2]
[367202389,1750698704005,-888.64,0.00024638,2]
[367202390,1750698704015,-1568.0,0.00024638,2]
[367202391,1750698704025,-573.95,0.00024638,2]
[367202392,1750698704036,-1236.22,0.00024638,2]
[367202393,1750698704047,-2086.57,0.00024638,2]
[367202394,1750698704057,-11128.95,0.00024638,2]
[367202395,1750698704068,-3474.170252,0.00024638,2]
[367202396,1750698704078,-578.12,0.00024638,2]
[367202397,1750698704089,-1094.52,0.00024638,2]
[367202398,1750698704100,-1429.33,0.00024638,2]
[367202399,1750698704111,-2550.63,0.00024638,2]
[367202400,1750698704121,-1705.63,0.00024638,2]
[367202401,1750698704131,-1403.27,0.00024638,2]
[367202402,1750698704141,-1000.0,0.00024638,2]
[367202403,1750698704151,-800.49,0.00024638,2]
[367202404,1750698704161,-2306.86,0.00024638,2]
[367202405,1750698704170,-3458.41,0.00024638,2]
[367202406,1750698704181,-573.21,0.00024638,2]
[367202407,1750698704190,-1743.2,0.00024638,2]
[367202408,1750698704200,-14104.896354,0.00024638,2]
[367202409,1750698704211,-10144.14,0.00024638,2]
[367202410,1750698704220,-490.0,0.00024638,2]
[367202411,1750698704230,-886.2,0.00024638,2]
[367202412,1750698704239,-2114.89,0.00024638,2]
[367202413,1750698704250,-4042.92,0.00024638,2]
[367202414,1750698704259,-2394.25,0.00024638,2]
[367202415,1750698704269,-731.69,0.00024638,2]
[367202416,1750698704279,-1526.25,0.00024638,2]
[367202417,1750698704289,-1361.84,0.00024638,2]
[367202418,1750698704299,-2763.6,0.00024638,2]
[367202419,1750698704308,-493.15,0.00024638,2]
[367202420,1750698704318,-5649.05,0.00024638,2]
[367202421,1750698704328,-841.69,0.00024638,2]
[367202422,1750698704338,-1021.6,0.00024638,2]
[367202423,1750698704348,-1566.44,0.00024638,2]
[367202424,1750698704357,-1307.2,0.00024638,2]
[367202425,1750698704368,-2220.37,0.00024638,2]
[367202426,1750698704377,-1694.76,0.00024638,2]
[367202427,1750698704388,-1333.28,0.00024638,2]
[367202428,1750698704398,-4728.59,0.00024638,2]
[367202429,1750698704407,-6206.01,0.00024638,2]
[367202430,1750698704418,-830.47,0.00024638,2]
[367202431,1750698704427,-1672.77,0.00024638,2]
[367202432,1750698704437,-1243.22,0.00024638,2]
[367202433,1750698704447,-585.45,0.00024638,2]
[367202434,1750698704457,-15974.58,0.00024638,2]
[367202435,1750698704467,-1042.64,0.00024638,2]
[367202436,1750698704477,-1213.26,0.00024638,2]
[367202437,1750698704487,-1057.02,0.00024638,2]
[367202438,1750698704496,-8982.57,0.00024638,2]
[367202439,1750698704506,-3184.98,0.00024638,2]
[367202440,1750698704521,-584.73,0.00024638,2]
[367202441,1750698704531,-955.19,0.00024638,2]
[367202442,1750698704542,-1281.44,0.00024638,2]
[367202443,1750698704553,-1451.39,0.00024638,2]
[367202444,1750698704563,-1334.22,0.00024638,2]
[367202445,1750698704591,-3646.54,0.00024638,2]
[367202446,1750698704602,-2077.8,0.00024638,2]
[367202447,1750698704616,-1126.53,0.00024638,2]
[367202448,1750698704626,-1062.91,0.00024638,2]
[367202449,1750698704637,-1754.15,0.00024638,2]
[367202450,1750698704648,-783.6,0.00024638,2]
[367202451,1750698704659,-1637.16,0.00024638,2]
[367202452,1750698704670,-1986.85,0.00024638,2]
[367202453,1750698704681,-30257.07,0.00024638,2]
[367202454,1750698704692,-4431.79,0.00024638,2]
[367202455,1750698704702,-1908.75,0.00024638,2]
[367202456,1750698704713,-1251.43,0.00024638,2]
[367202457,1750698704723,-1043.13,0.00024638,2]
[367202458,1750698704734,-1449.88,0.00024638,2]
[367202459,1750698704744,-3408.85,0.00024638,2]
[367202460,1750698704754,-1487.37,0.00024638,2]
[367202461,1750698704765,-1477.39,0.00024638,2]
[367202462,1750698704775,-1309.69,0.00024638,2]
[367202463,1750698704786,-1399.23,0.00024638,2]
[367202464,1750698704797,-4978.94,0.00024638,2]
[367202465,1750698704808,-1851.33,0.00024638,2]
[367202466,1750698704819,-1549.84,0.00024638,2]
[367202467,1750698704829,-1569.7,0.00024638,2]
[367202468,1750698704840,-4930.1,0.00024638,2]
[367202469,1750698704851,-2819.42,0.00024638,2]
[367202470,1750698704864,-3120.58,0.00024638,2]
[367202471,1750698704874,-1734.46,0.00024638,2]
[367202472,1750698704885,-1884.11,0.00024638,2]
[367202473,1750698704895,-4270.66,0.00024638,2]
[367202474,1750698704905,-747.75,0.00024638,2]
[367202475,1750698704915,-2881.99,0.00024638,2]
[367202476,1750698704925,-5897.6,0.00024638,2]
[367202477,1750698704934,-490.0,0.00024638,2]
[367202478,1750698704945,-1573.74,0.00024638,2]
[367202479,1750698704954,-1383.69,0.00024638,2]
[367202480,1750698704964,-885.33,0.00024638,2]
[367202481,1750698704974,-1501.78,0.00024638,2]
[367202482,1750698704984,-698.8,0.00024639,2]
[367202483,1750698704994,-669.68,0.00024639,2]
[367202484,1750698705003,-490.0,0.00024639,2]
[367202485,1750698705013,-929.07,0.00024639,2]
[367202486,1750698705023,-490.0,0.00024639,2]
[367202487,1750698705033,-490.0,0.00024639,2]
[367202488,1750698705043,-1110.49,0.00024639,2]
[367202489,1750698705053,-791.44,0.00024639,2]
[367202490,1750698705063,-490.0,0.00024639,2]
[367202491,1750698705072,-1147.96,0.00024639,2]
[367202492,1750698705082,-490.0,0.00024639,2]
[367202493,1750698705095,-490.0,0.00024639,2]
[367202494,1750698705107,-490.0,0.00024639,2]
[367202495,1750698705120,-490.0,0.00024639,2]
[367202496,1750698705131,-920.38,0.00024639,2]
[367202497,1750698705142,-564.09,0.00024639,2]
[367202498,1750698705153,-773.07,0.00024639,2]
[367202499,1750698705163,-974.05,0.00024639,2]
[367202500,1750698705174,-772.88,0.00024639,2]
[367202501,1750698705185,-490.0,0.00024639,2]
[367202502,1750698705196,-490.0,0.00024639,2]
[367202503,1750698705206,-490.0,0.00024639,2]
[367202504,1750698705216,-490.0,0.00024639,2]
[367202505,1750698705226,-563.39,0.00024639,2]
[367202506,1750698705236,-490.0,0.00024639,2]
[367202507,1750698705246,-623.87477456,0.00024639,2]
[367202508,1750698705256,-490.0,0.00024639,2]
[367202509,1750698705266,-490.0,0.00024639,2]
[367202510,1750698705276,-523.29,0.00024639,2]
[367202511,1750698705287,-490.0,0.00024639,2]
[367202512,1750698705297,-1284.85,0.00024639,2]
[367202513,1750698705306,-740.67,0.00024639,2]
[367202514,1750698705316,-596.54,0.00024639,2]
[367202515,1750698705326,-329.93341826,0.00024639,2]
[367202516,1750698705336,-679.03,0.00024639,2]
[367202517,1750698705346,-795.0,0.00024639,2]
[367202518,1750698705357,-565.51,0.00024639,2]
[367202519,1750698705370,-490.0,0.00024639,2]
[367202520,1750698705380,-924.56,0.00024639,2]
[367202521,1750698705391,-1608.33,0.00024639,2]
[367202522,1750698705401,-540.42,0.00024639,2]
[367202523,1750698705412,-631.4,0.00024639,2]
[367202524,1750698705422,-1315.78,0.00024639,2]
[367202525,1750698705432,-940.16,0.00024639,2]
[367202526,1750698705442,-836.48,0.00024639,2]
[367202527,1750698705453,-676.41,0.00024639,2]
[367202528,1750698705463,-490.0,0.00024639,2]
[367202529,1750698705473,-208.8512382,0.00024639,2]
[367202530,1750698705483,-1995.8,0.00024639,2]
[367202531,1750698705494,-955.43,0.00024639,2]
[367202532,1750698705504,-946.21,0.00024639,2]
[367202533,1750698705514,-413.07940181,0.00024639,2]
[367202534,1750698705525,-1199.8,0.00024639,2]
[367202535,1750698705535,-1746.69,0.00024639,2]
[367202536,1750698705546,-1597.4,0.00024639,2]
[367202537,1750698705556,-721.98,0.00024639,2]
[367202538,1750698705566,-490.0,0.00024639,2]
[367202539,1750698705576,-1078.2,0.00024639,2]
[367202540,1750698705586,-1245.27,0.00024639,2]
[367202541,1750698705597,-490.0,0.00024639,2]
[367202542,1750698705607,-516.18,0.00024639,2]
[367202543,1750698705619,-490.0,0.00024639,2]
[367202544,1750698705874,-990.07,0.00024639,2]
[367202545,1750698705917,-549.99,0.00024639,2]
[367202546,1750698705927,-490.0,0.00024639,2]
[367202547,1750698705937,-752.35,0.00024639,2]
[367202548,1750698705947,-490.0,0.00024639,2]
[367202549,1750698705957,-1453.03,0.00024639,2]
[367202550,1750698705966,-785.71,0.00024639,2]
[367202551,1750698705976,-742.29,0.00024639,2]
[367202552,1750698705985,-1602.78,0.00024639,2]
[367202553,1750698705995,-856.74,0.00024639,2]
[367202554,1750698706004,-1829.46,0.00024639,2]
[367202555,1750698706013,-490.0,0.00024639,2]
[367202556,1750698706023,-962.15,0.00024639,2]
[367202557,1750698706032,-847.97,0.00024639,2]
[367202558,1750698706042,-1010.43,0.00024639,2]
[367202559,1750698706052,-490.0,0.00024639,2]
[367202560,1750698706061,-348.89596843,0.00024639,2]
[367202561,1750698706070,-845.85,0.00024639,2]
[367202562,1750698706080,-822.97,0.00024639,2]
[367202563,1750698706092,-490.0,0.00024639,2]
[367202564,1750698706103,-526.85,0.00024639,2]
[367202565,1750698706114,-1459.19,0.00024639,2]
[367202566,1750698706123,-490.0,0.00024639,2]
[367202567,1750698706133,-1910.2,0.00024639,2]
[367202568,1750698706143,-975.14,0.00024639,2]
[367202569,1750698706153,-1090.36,0.00024639,2]
[367202570,1750698706163,-490.0,0.00024639,2]
[367202571,1750698706173,-1700.88,0.00024639,2]
[367202572,1750698706183,-490.0,0.00024639,2]
[367202573,1750698706193,-661.71,0.00024639,2]
[367202574,1750698706203,-2474.52,0.00024639,2]
[367202575,1750698706213,-1007.33,0.00024639,2]
[367202576,1750698706223,-621.4,0.00024639,2]
[367202577,1750698706233,-490.0,0.00024639,2]
[367202578,1750698706243,-1520.6,0.00024639,2]
[367202579,1750698706253,-604.07,0.00024639,2]
[367202580,1750698706262,-187.47334233,0.00024639,2]
[367202581,1750698706272,-490.0,0.00024639,2]
[367202582,1750698706282,-515.83,0.00024639,2]
[367202583,1750698706291,-636.82,0.00024639,2]
[367202584,1750698706301,-1671.93,0.00024639,2]
[367202585,1750698706310,-1091.97,0.00024639,2]
[367202586,1750698706320,-490.0,0.00024639,2]
[367202587,1750698706330,-490.0,0.00024639,2]
[367202588,1750698706340,-1337.29,0.00024639,2]
[367202589,1750698706349,-1057.36,0.00024639,2]
[367202590,1750698706359,-897.65,0.00024639,2]
[367202591,1750698706371,-490.0,0.00024639,2]
[367202592,1750698706381,-1237.82,0.00024639,2]
[367202593,1750698706391,-513.51,0.00024639,2]
[367202594,1750698706404,-628.5,0.00024639,2]
[367202595,1750698706414,-1452.58,0.00024639,2]
[367202596,1750698706424,-2187.25,0.00024639,2]
[367202597,1750698706433,-554.23,0.00024639,2]
[367202598,1750698706444,-541.28,0.00024639,2]
[367202599,1750698706453,-885.64,0.00024639,2]
[367202600,1750698706463,-542.88,0.00024639,2]
[367202601,1750698706473,-838.0,0.00024639,2]
[367202602,1750698706482,-1607.74,0.00024639,2]
[367202603,1750698706492,-2113.25,0.00024639,2]
[367202604,1750698706502,-490.0,0.00024639,2]
[367202605,1750698706511,-1894.29,0.00024639,2]
[367202606,1750698706522,-490.0,0.00024639,2]
[367202607,1750698706531,-1031.09,0.00024639,2]
[367202608,1750698706541,-490.0,0.00024639,2]
[367202609,1750698706551,-490.0,0.00024639,2]
[367202610,1750698706561,-490.0,0.00024639,2]
[367202611,1750698706570,-360.38,0.00024639,2]
[367202612,1750698706580,-788.91,0.00024639,2]
[367202613,1750698706590,-490.0,0.00024639,2]
[367202614,1750698706599,-490.0,0.00024639,2]
[367202615,1750698706609,-2071.88,0.00024639,2]
[367202616,1750698706621,-1258.85,0.00024639,2]
[367202617,1750698706630,-788.65,0.00024639,2]
[367202618,1750698706640,-490.0,0.00024639,2]
[367202619,1750698706650,-490.0,0.00024639,2]
[367202620,1750698706660,-1574.29,0.00024639,2]
[367202621,1750698706669,-1152.75,0.00024639,2]
[367202622,1750698706679,-1238.42,0.00024639,2]
[367202623,1750698706689,-1425.09,0.00024639,2]
[367202624,1750698706699,-490.0,0.00024639,2]
[367202625,1750698706710,-1519.63,0.00024639,2]
[367202626,1750698706720,-666.89,0.00024639,2]
[367202627,1750698706730,-490.0,0.00024639,2]
[367202628,1750698706740,-585.27,0.00024639,2]
[367202629,1750698706749,-490.0,0.00024639,2]
[367202630,1750698706759,-1335.79,0.00024639,2]
[367202631,1750698706769,-490.0,0.00024639,2]
[367202632,1750698706779,-490.0,0.00024639,2]
[367202633,1750698706789,-490.0,0.00024639,2]
[367202634,1750698706798,-1660.38,0.00024639,2]
[367202635,1750698706808,-1907.04,0.00024639,2]
[367202636,1750698706818,-804.67,0.00024639,2]
[367202637,1750698706829,-490.0,0.00024639,2]
[367202638,1750698706839,-1654.5,0.00024639,2]
[367202639,1750698706849,-1140.14,0.00024639,2]
[367202640,1750698706859,-490.0,0.00024639,2]
[367202641,1750698706871,-490.0,0.00024639,2]
[367202642,1750698706881,-490.0,0.00024639,2]
[367202643,1750698706891,-1832.21,0.00024639,2]
[367202644,1750698706900,-423.08329147,0.00024639,2]
[367202645,1750698706910,-858.09,0.00024639,2]
[367202646,1750698706919,-660.75,0.00024639,2]
[367202647,1750698706929,-490.0,0.00024639,2]
[367202648,1750698706939,-490.0,0.00024639,2]
[367202649,1750698706948,-1520.18,0.00024639,2]
[367202650,1750698706959,-490.0,0.00024639,2]
[367202651,1750698706969,-1338.13,0.00024639,2]
[367202652,1750698706979,-1071.6,0.00024639,2]
[367202653,1750698706988,-500.0,0.00024639,2]
[367202654,1750698706998,-490.0,0.00024639,2]
[367202655,1750698707008,-1193.49,0.00024639,2]
[367202656,1750698707018,-490.0,0.00024639,2]
[367202657,1750698707028,-765.84,0.00024639,2]
[367202658,1750698707039,-490.0,0.00024639,2]
[367202659,1750698707050,-490.0,0.00024639,2]
[367202660,1750698707060,-490.0,0.00024639,2]
[367202661,1750698707069,-975.19,0.00024639,2]
[367202662,1750698707079,-1121.14,0.00024639,2]
[367202663,1750698707092,-490.0,0.00024639,2]
[367202664,1750698707102,-721.36,0.00024639,2]
[367202665,1750698707112,-490.0,0.00024639,2]
[367202666,1750698707124,-1496.89,0.00024639,2]
[367202667,1750698707133,-616.53537755,0.00024639,2]
[367202668,1750698707143,-1850.56,0.00024639,2]
[367202669,1750698707154,-851.87,0.00024639,2]
[367202670,1750698707164,-775.66,0.00024639,2]
[367202671,1750698707175,-508.01,0.00024639,2]
[367202672,1750698707185,-490.0,0.00024639,2]
[367202673,1750698707194,-696.43,0.00024639,2]
[367202674,1750698707203,-490.0,0.00024639,2]
[367202675,1750698707214,-503.51,0.00024639,2]
[367202676,1750698707223,-759.75,0.00024639,2]
[367202677,1750698707233,-719.21,0.00024639,2]
[367202678,1750698707242,-550.96,0.00024639,2]
[367202679,1750698707252,-1736.88,0.00024639,2]
[367202680,1750698707262,-1417.97,0.00024639,2]
[367202681,1750698707272,-490.0,0.0002464,2]
[367202682,1750698707282,-1272.27,0.0002464,2]
[367202683,1750698707291,-490.0,0.0002464,2]
[367202684,1750698707301,-490.0,0.0002464,2]
[367202685,1750698707311,-688.42,0.0002464,2]
[367202686,1750698707320,-490.0,0.0002464,2]
[367202687,1750698707330,-490.0,0.0002464,2]
[367202688,1750698707340,-619.84,0.0002464,2]
[367202689,1750698707350,-490.0,0.0002464,2]
[367202690,1750698707359,-815.99,0.0002464,2]
[367202691,1750698707371,-490.0,0.0002464,2]
[367202692,1750698707382,-490.0,0.0002464,2]
[367202693,1750698707392,-490.0,0.0002464,2]
[367202694,1750698707402,-491.68,0.0002464,2]
[367202695,1750698707412,-490.0,0.0002464,2]
[367202696,1750698707422,-490.0,0.0002464,2]
[367202697,1750698707432,-490.0,0.0002464,2]
[367202698,1750698707441,-490.0,0.0002464,2]
[367202699,1750698707451,-982.4,0.0002464,2]
[367202700,1750698707461,-683.19,0.0002464,2]
[367202701,1750698707470,-1734.24,0.0002464,2]
[367202702,1750698707479,-2397.5,0.0002464,2]
[367202703,1750698707489,-665.68,0.0002464,2]
[367202704,1750698707499,-1068.53,0.0002464,2]
[367202705,1750698707509,-963.54,0.0002464,2]
[367202706,1750698707518,-490.0,0.0002464,2]
[367202707,1750698707528,-1365.65,0.0002464,2]
[367202708,1750698707537,-1251.07,0.0002464,2]
[367202709,1750698707546,-1403.96,0.0002464,2]
[367202710,1750698707557,-851.44,0.0002464,2]
[367202711,1750698707567,-537.5,0.0002464,2]
[367202712,1750698707576,-150.0,0.00024646,2]
[367202713,1750698707586,-579.76908301,0.0002465,2]
[367202714,1750698707596,-11596.53316978,0.0002465,2]
[367202715,1750698707606,-234.44416006,0.0002465,2]
[367202716,1750698707617,-2880.27896212,0.00024656,2]
[367202717,1750698707627,-300.0,0.00024657,4]
[367202718,1750698707638,-300.0,0.00024657,2]
[367202719,1750698707648,-300.0,0.00024657,2]
[367202720,1750698707659,-300.0,0.00024657,2]
[367202721,1750698707669,-300.0,0.00024657,2]
[367202722,1750698707679,-300.0,0.00024657,2]
[367202723,1750698707689,-300.0,0.00024657,2]
[367202724,1750698707699,-300.0,0.00024657,2]
[367202725,1750698707709,-150.0,0.00024658,2]
[367202726,1750698707719,-886.269828,0.00024658,7]
[367202727,1750698707728,-886.269828,0.00024658,7]
[367202728,1750698707738,-886.269828,0.00024658,7]
[367202729,1750698707749,-886.269828,0.00024658,7]
[367202730,1750698707759,-886.269828,0.00024658,7]
[367202731,1750698707769,-886.269828,0.00024658,7]
[367202732,1750698707779,-886.269828,0.00024658,7]
[367202733,1750698707789,-886.269828,0.00024658,7]
[367202734,1750698707799,-886.269828,0.00024658,7]
[367202735,1750698707809,-886.269828,0.00024658,7]
[367202736,1750698707818,-886.269828,0.00024658,7]
[367202737,1750698707828,-886.269828,0.00024658,7]
[367202738,1750698707837,-886.269828,0.00024658,7]
[367202739,1750698707847,-886.269828,0.00024658,7]
[367202740,1750698707857,-886.269828,0.00024658,7]
[367202741,1750698707868,-886.269828,0.00024658,7]
[367202742,1750698707877,-886.269828,0.00024658,7]
[367202743,1750698707888,-886.269828,0.00024658,7]
[367202744,1750698707897,-886.269828,0.00024658,7]
[367202745,1750698707907,-886.269827,0.00024658,7]
[367202746,1750698707918,-500.0,0.00024658,2]
[367202747,1750698707929,-500.0,0.00024658,2]
[367202748,1750698707939,-500.0,0.00024658,2]
[367202749,1750698707949,-500.0,0.00024658,2]
[367202750,1750698707959,-500.0,0.00024658,2]
[367202751,1750698707969,-500.0,0.00024658,2]
[367202752,1750698707978,-500.0,0.00024658,2]
[367202753,1750698707988,-500.0,0.00024658,2]
[367202754,1750698707998,-500.0,0.00024658,2]
[367202755,1750698708007,-584.54870816,0.00024658,2]
[367202756,1750698708017,-500.0,0.00024658,2]
[367202757,1750698708027,-500.0,0.00024658,2]
[367202758,1750698708037,-500.0,0.00024658,2]
[367202759,1750698708048,-500.0,0.00024658,2]
[367202760,1750698708058,-500.0,0.00024658,2]
[367202761,1750698708068,-185.90533822,0.00024658,2]
[367202762,1750698708077,-500.0,0.00024658,2]
[367202763,1750698708087,-500.0,0.00024658,2]
[367202764,1750698708099,-500.0,0.00024658,2]
[367202765,1750698708109,-500.0,0.00024658,2]
[367202766,1750698708120,-500.0,0.00024658,2]
[367202767,1750698708130,-500.0,0.00024658,2]
[367202768,1750698708140,-500.0,0.00024658,2]